fUST/lending_fUST_20250222
["ID","MTS","AMOUNT","RATE_DAILY","PERIOD"]
[353967944,1740169848907,-969.37,0.00014684,2]
[353967946,1740169848916,-500.0,0.00014684,2]
[353967948,1740169848926,-989.05,0.00014684,2]
[353967950,1740169848935,-500.0,0.00014684,2]
[353967952,1740169848944,-500.0,0.00014684,2]
[353967954,1740169848955,-500.0,0.00014684,2]
[353967956,1740169848965,-562.91,0.00014684,2]
[353967958,1740169848975,-3065.21,0.00014684,2]
[353967961,1740169848987,-168.96222635,0.00014686,2]
[353967962,1740169848998,-151.0,0.000147,2]
[353967964,1740169849009,-500.0,0.00014767,2]
[353967966,1740169849019,-500.0,0.00014767,2]
[353967968,1740169849029,-1249.66,0.00014767,2]
[353967970,1740169849040,-2804.28,0.00014767,2]
[353967973,1740169849050,-969.37,0.00014767,2]
[353967975,1740169849059,-376.36,0.00014767,2]
[353967977,1740169849069,-989.05,0.00014767,2]
[353967979,1740169849079,-500.0,0.00014767,2]
[353967981,1740169849089,-500.0,0.00014767,2]
[353967983,1740169849098,-500.0,0.00014767,2]
[353967985,1740169849108,-562.91,0.00014767,2]
[353967987,1740169849117,-3065.21,0.00014767,2]
[353967989,1740169849128,-420.0,0.00014795,2]
[353967991,1740169849138,-2301.55,0.000148,2]
[353967993,1740169849148,-2018.95906292,0.000148,2]
[353967994,1740169849158,-2018.95906292,0.000148,2]
[353967996,1740169849169,-2018.95906292,0.000148,2]
[353968005,1740169849248,-2018.95906292,0.000148,2]
[353968007,1740169849259,-2018.95906292,0.000148,2]
[353968009,1740169849269,-2018.95906292,0.000148,2]
[353968011,1740169849279,-2018.95906292,0.000148,2]
[353968013,1740169849289,-2018.95906292,0.000148,2]
[353968015,1740169849299,-2018.95906292,0.000148,2]
[353968017,1740169849309,-2018.95906292,0.000148,2]
[353968019,1740169849320,-2018.95906292,0.000148,2]
[353968021,1740169849330,-2018.95906292,0.000148,2]
[353968023,1740169849340,-2018.95906292,0.000148,2]
[353968025,1740169849351,-2018.95906292,0.000148,2]
[353968027,1740169849362,-2018.95906292,0.000148,2]
[353968029,1740169849372,-2018.95906292,0.000148,2]
[353968031,1740169849381,-2018.95906292,0.000148,2]
[353968033,1740169849391,-2018.95906292,0.000148,2]
[353968035,1740169849401,-2018.95906292,0.000148,2]
[353968037,1740169849411,-2018.95,0.000148,2]
[353968039,1740169849421,-889.60063641,0.000148,2]
[353968041,1740169849430,-889.60063641,0.000148,2]
[353968043,1740169849439,-889.60063641,0.000148,2]
[353968045,1740169849449,-889.60063641,0.000148,2]
[353968047,1740169849459,-889.60063641,0.000148,2]
[353968049,1740169849468,-889.60063641,0.000148,2]
[353968051,1740169849478,-889.60063641,0.000148,2]
[353968053,1740169849487,-889.60063641,0.000148,2]
[353968055,1740169849496,-889.60063641,0.000148,2]
[353968057,1740169849507,-889.60063641,0.000148,2]
[353968059,1740169849517,-889.60063641,0.000148,2]
[353968061,1740169849526,-889.60063641,0.000148,2]
[353968063,1740169849536,-889.60063641,0.000148,2]
[353968065,1740169849547,-889.60063641,0.000148,2]
[353968067,1740169849556,-889.60063641,0.000148,2]
[353968069,1740169849566,-889.60063641,0.000148,2]
[353968071,1740169849580,-889.60063641,0.000148,2]
[353968073,1740169849590,-889.60063641,0.000148,2]
[353968075,1740169849600,-889.60063641,0.000148,2]
[353968077,1740169849611,-889.6,0.000148,2]
[353968079,1740169849620,-496.81203715,0.000148,2]
[353968081,1740169849630,-496.81203715,0.000148,2]
[353968083,1740169849639,-496.81203715,0.000148,2]
[353968085,1740169849649,-496.81203715,0.000148,2]
[353968086,1740169849660,-496.81203715,0.000148,2]
[353968087,1740169849669,-496.81203715,0.000148,2]
[353968088,1740169849679,-496.81203715,0.000148,2]
[353968089,1740169849689,-496.81203715,0.000148,2]
[353968090,1740169849699,-496.81203715,0.000148,2]
[353968091,1740169849709,-496.81203715,0.000148,2]
[353968093,1740169849719,-496.81203715,0.000148,2]
[353968096,1740169849730,-496.81203715,0.000148,2]
[353968098,1740169849740,-496.81203715,0.000148,2]
[353968100,1740169849750,-496.81203715,0.000148,2]
[353968102,1740169849760,-496.81203715,0.000148,2]
[353968104,1740169849770,-496.81203715,0.000148,2]
[353968106,1740169849779,-496.81203715,0.000148,2]
[353968108,1740169849789,-496.81203715,0.000148,2]
[353968110,1740169849799,-496.81203715,0.000148,2]
[353968112,1740169849808,-496.81,0.000148,2]
[353968114,1740169849817,-564.74719125,0.00014831,2]
[353968116,1740169849827,-361.28,0.00014849,2]
[353968118,1740169849836,-500.0,0.00014849,2]
[353968120,1740169849845,-1249.66,0.00014849,2]
[353968122,1740169849855,-2804.28,0.00014849,2]
[353968124,1740169849864,-969.37,0.00014849,2]
[353968126,1740169849873,-989.05,0.00014849,2]
[353968128,1740169849883,-547.46,0.00014849,2]
[353968130,1740169849892,-500.0,0.00014849,2]
[353968132,1740169849902,-500.0,0.00014849,2]
[353968134,1740169849911,-562.91,0.00014849,2]
[353968136,1740169849920,-3065.21,0.00014849,2]
[353968138,1740169849931,-500.0,0.00014873,2]
[353968140,1740169849941,-500.0,0.00014873,2]
[353968142,1740169849950,-500.0,0.00014873,2]
[353968144,1740169849959,-500.38433033,0.00014873,2]
[353968146,1740169849969,-500.17400097,0.00014873,2]
[353968148,1740169849980,-18785.57210896,0.000149,5]
[353968150,1740169849989,-151.0,0.000149,2]
[353968152,1740169850000,-569951.554177,0.000149,2]
[353968154,1740169850009,-151.0,0.000149,2]
[353968156,1740169850019,-500.0,0.00014931,2]
[353968158,1740169850028,-1249.66,0.00014931,2]
[353968160,1740169850037,-2804.28,0.00014931,2]
[353968162,1740169850047,-969.37,0.00014931,2]
[353968164,1740169850058,-989.05,0.00014931,2]
[353968166,1740169850067,-500.0,0.00014931,2]
[353968168,1740169850077,-500.0,0.00014931,2]
[353968170,1740169850086,-562.91,0.00014931,2]
[353968172,1740169850096,-3065.21,0.00014931,2]
[353968174,1740169850105,-151.0,0.00015,2]
[353968176,1740169850114,-200.44748055,0.00015,2]
[353968178,1740169850124,-42310.4808638,0.00015,4]
[353968180,1740169850132,-500.0,0.00015013,2]
[353968182,1740169850142,-1249.66,0.00015013,2]
[353968184,1740169850152,-2804.28,0.00015013,2]
[353968186,1740169850161,-969.37,0.00015013,2]
[353968188,1740169850172,-989.05,0.00015013,2]
[353968190,1740169850182,-325.08,0.00015013,2]
[353968192,1740169850192,-500.0,0.00015013,2]
[353968194,1740169850201,-562.91,0.00015013,2]
[353968196,1740169850211,-3065.21,0.00015013,2]
[353968199,1740169850220,-500.0,0.00015095,2]
[353968200,1740169850231,-1249.66,0.00015095,2]
[353968203,1740169850241,-2804.28,0.00015095,2]
[353968205,1740169850254,-969.37,0.00015095,2]
[353968207,1740169850265,-989.05,0.00015095,2]
[353968209,1740169850274,-151.0,0.00015095,2]
[353968211,1740169850283,-500.0,0.00015095,2]
[353968213,1740169850292,-247.85181,0.00015095,2]
[353968215,1740169850302,-562.91,0.00015095,2]
[353968217,1740169850311,-3065.21,0.00015095,2]
[353968219,1740169850321,-151.0,0.000151,2]
[353968221,1740169850330,-500.0,0.00015119,2]
[353968223,1740169850339,-631.08,0.00015178,2]
[353968225,1740169850349,-1249.66,0.00015178,2]
[353968227,1740169850358,-2804.28,0.00015178,2]
[353968229,1740169850368,-969.37,0.00015178,2]
[353968231,1740169850378,-989.05,0.00015178,2]
[353968233,1740169850388,-500.0,0.00015178,2]
[353968235,1740169850399,-562.91,0.00015178,2]
[353968237,1740169850408,-3065.21,0.00015178,2]
[353968239,1740169850418,-151.0,0.0001526,2]
[353968241,1740169850428,-1249.66,0.0001526,2]
[353968243,1740169850437,-2804.28,0.0001526,2]
[353968245,1740169850446,-969.37,0.0001526,2]
[353968247,1740169850456,-989.05,0.0001526,2]
[353968249,1740169850465,-500.0,0.0001526,2]
[353968251,1740169850475,-562.91,0.0001526,2]
[353968253,1740169850488,-3065.21,0.0001526,2]
[353968255,1740169850498,-168.96222635,0.00015329,2]
[353968257,1740169850507,-151.0,0.00015342,2]
[353968259,1740169850515,-1249.66,0.00015342,2]
[353968261,1740169850524,-2804.28,0.00015342,2]
[353968262,1740169850534,-969.37,0.00015342,2]
[353968264,1740169850544,-989.05,0.00015342,2]
[353968267,1740169850553,-500.0,0.00015342,2]
[353968269,1740169850562,-562.91,0.00015342,2]
[353968271,1740169850572,-3065.21,0.00015342,2]
[353968273,1740169850581,-1969.0,0.00015392,2]
[353968275,1740169850593,-538.0,0.00015392,2]
[353968277,1740169850602,-2288.0,0.00015392,2]
[353968279,1740169850611,-151.0,0.000154,2]
[353968281,1740169850621,-151.0,0.000154,2]
[353968283,1740169850631,-500.0,0.00015421,2]
[353968285,1740169850640,-1249.66,0.00015424,2]
[353968287,1740169850649,-2804.28,0.00015424,2]
[353968289,1740169850661,-969.37,0.00015424,2]
[353968291,1740169850671,-989.05,0.00015424,2]
[353968293,1740169850682,-500.0,0.00015424,2]
[353968295,1740169850691,-562.91,0.00015424,2]
[353968303,1740169850762,-3065.21,0.00015424,2]
[353968305,1740169850772,-151.0,0.00015506,2]
[353968307,1740169850781,-151.0,0.00015506,2]
[353968309,1740169850791,-151.0,0.00015506,2]
[353968311,1740169850800,-151.0,0.00015506,2]
[353968313,1740169850810,-151.0,0.00015506,2]
[353968314,1740169850819,-151.0,0.00015506,2]
[353968316,1740169850828,-1249.66,0.00015506,2]
[353968318,1740169850838,-2804.28,0.00015506,2]
[353968320,1740169850847,-969.37,0.00015506,2]
[353968322,1740169850857,-989.05,0.00015506,2]
[353968324,1740169850866,-500.0,0.00015506,2]
[353968326,1740169850875,-562.91,0.00015506,2]
[353968328,1740169850884,-3065.21,0.00015506,2]
[353968330,1740169850894,-1249.67,0.00015589,2]
[353968332,1740169850903,-2804.4,0.00015589,2]
[353968334,1740169850912,-969.55,0.00015589,2]
[353968336,1740169850921,-989.26,0.00015589,2]
[353968338,1740169850931,-310.61,0.00015589,2]
[353968340,1740169850940,-563.01,0.00015589,2]
[353968342,1740169850950,-3065.29942118,0.00015589,2]
[353968344,1740169850959,-160.651772,0.00015731,4]
[353968346,1740169850969,-151.0,0.000158,2]
[353968348,1740169850980,-151.0,0.000158,2]
[353968350,1740169850989,-168.96222635,0.00015971,2]
[353968352,1740169850999,-499.0,0.00016164,2]
[353968354,1740169851009,-151.0,0.000162,2]
[353968356,1740169851018,-587.0,0.00016217,2]
[353968358,1740169851027,-151.0,0.000163,2]
[353968360,1740169851037,-500.0,0.00016365,2]
[353968362,1740169851047,-500.0,0.00016438,2]
[353968364,1740169851056,-500.0,0.00016438,2]
[353968366,1740169851066,-500.0,0.00016465,2]
[353968368,1740169851075,-151.0,0.000165,2]
[353968371,1740169851085,-500.0,0.00016565,2]
[353968373,1740169851095,-168.96222635,0.00016614,2]
[353968375,1740169851104,-500.0,0.00016665,2]
[353968377,1740169851117,-151.0,0.000167,2]
[353968379,1740169851126,-500.0,0.00016765,2]
[353968381,1740169851134,-500.0,0.00016865,2]
[353968383,1740169851144,-151.0,0.000169,2]
[353968385,1740169851153,-500.0,0.00016904,2]
[353968387,1740169851163,-500.0,0.00016965,2]
[353968389,1740169851172,-500.0,0.00017065,2]
[353968391,1740169851181,-151.0,0.000171,2]
[353968393,1740169851190,-198.24228,0.00017123,2]
[353968395,1740169851201,-500.0,0.00017165,2]
[353968397,1740169851213,-151.0,0.000172,2]
[353968399,1740169851222,-168.96222635,0.00017257,2]
[353968401,1740169851233,-500.0,0.00017265,2]
[353968403,1740169851242,-151.0,0.000173,2]
[353968405,1740169851250,-500.0,0.00017365,2]
[353968407,1740169851259,-500.0,0.00017465,2]
[353968409,1740169851269,-22626.47802629,0.0001753,2]
[353968411,1740169851278,-499.0,0.00017534,4]
[353968412,1740169851287,-500.0,0.00017565,2]
[353968415,1740169851297,-9881.11112467,0.00017582,2]
[353968417,1740169851306,-151.0,0.000176,2]
[353968419,1740169851315,-151.0,0.000176,2]
[353968420,1740169851324,-151.0,0.000176,2]
[353968422,1740169851334,-2195.8262246,0.00017615,2]
[353968424,1740169851343,-151.0,0.00017615,2]
[353968426,1740169851352,-500.0,0.00017665,2]
[353968428,1740169851362,-189.0,0.000177,2]
[353968430,1740169851371,-36909.85150944,0.000177,2]
[353968432,1740169851381,-500.0,0.00017708,2]
[353968434,1740169851390,-500.0,0.00017708,2]
[353968436,1740169851399,-151.0,0.00017754,2]
[353968438,1740169851409,-151.0,0.00017754,2]
[353968440,1740169851417,-253.517451,0.00017754,10]
[353968442,1740169851426,-500.79973755,0.00017754,2]
[353968444,1740169851436,-1750.31526637,0.00017754,2]
[353968446,1740169851444,-501.87883399,0.00017754,2]
[353968448,1740169851454,-43766.92888665,0.00017754,2]
[353968465,1740169851611,-500.0,0.00013698,2]
[353968467,1740169851622,-500.0,0.00013698,2]
[353968469,1740169851631,-500.0,0.00013698,2]
[353968471,1740169851640,-242.0,0.00013698,2]
[353968479,1740169851712,-258.0,0.00013698,2]
[353968481,1740169851722,-461.49036088,0.00013698,2]
[353968483,1740169851732,-500.0,0.00013698,2]
[353968485,1740169851741,-500.0,0.00013698,2]
[353968487,1740169851750,-500.0,0.00013698,2]
[353968489,1740169851759,-457.02130959,0.0001378,2]
[353968491,1740169851768,-179.48832953,0.0001378,2]
[353968494,1740169851779,-320.51167047,0.0001378,2]
[353968496,1740169851788,-179.48832953,0.00013863,2]
[353968510,1740169851917,-500.0,0.00013698,2]
[353968512,1740169851926,-500.59733083,0.00013698,2]
[353968514,1740169851935,-500.0,0.00013698,2]
[353968516,1740169851943,-500.0,0.00013698,2]
[353968518,1740169851953,-500.0,0.00013698,2]
[353968520,1740169851962,-500.0,0.00013698,2]
[353968522,1740169851971,-500.0,0.0001378,2]
[353968524,1740169851980,-500.0,0.0001378,2]
[353968526,1740169851989,-500.0,0.0001378,2]
[353968534,1740169851998,-500.0,0.0001378,2]
[353968537,1740169852069,-500.0,0.0001378,2]
[353968538,1740169852078,-500.0,0.0001378,2]
[353968540,1740169852087,-320.51167047,0.00013863,2]
[353968542,1740169852096,-500.0,0.00013863,2]
[353968544,1740169852105,-500.0,0.00013863,2]
[353968546,1740169852114,-605.05935747,0.00013863,2]
[353968548,1740169852124,-500.0,0.00013945,2]
[353968550,1740169852133,-500.0,0.00013945,2]
[353968552,1740169852142,-351.8,0.00014027,2]
[353968554,1740169852151,-500.0,0.00014027,2]
[353968557,1740169852161,-500.0,0.00014109,2]
[353968559,1740169852170,-500.0,0.00014191,2]
[353968561,1740169852179,-500.0,0.00014273,2]
[353968563,1740169852189,-500.0,0.00014356,2]
[353968565,1740169852198,-500.0,0.00014438,2]
[353968567,1740169852207,-40949.45053904,0.00017754,2]
[353968569,1740169852217,-3847.90994139,0.00017754,2]
[353968571,1740169852226,-3003.85072764,0.00017754,3]
[353968573,1740169852237,-532.74082072,0.00017754,3]
[353968575,1740169852247,-39725.8941316,0.00017754,10]
[353968578,1740169852272,-500.0,0.0001378,2]
[353968580,1740169852282,-500.0,0.00013863,2]
[353968582,1740169852291,-500.0,0.0001452,2]
[353968584,1740169852303,-7793.35482123,0.00017754,10]
[353968586,1740169852315,-1907.78175045,0.00017754,10]
[353971414,1740170434188,200.0,0.00019,120]
[353971415,1740170536091,162.965097,9.041e-05,2]
[353971459,1740171032304,-1662.6969675,0.00012687,2]
[353971461,1740171032314,-300.0,0.00012736,2]
[353971463,1740171032323,-24900.0,0.00012737,2]
[353971465,1740171032332,-268.09448876,0.00013673,2]
[353971467,1740171032342,-500.0,0.00013673,2]
[353971469,1740171032351,-165.44832829,0.0001368,2]
[353971471,1740171032361,-500.0,0.00013697,2]
[353971473,1740171032370,-500.0,0.00013697,2]
[353971475,1740171032379,-500.0,0.00013697,2]
[353971476,1740171032388,-500.0,0.00013697,2]
[353971477,1740171032397,-500.0,0.00013697,2]
[353971478,1740171032406,-500.0,0.00013697,2]
[353971479,1740171032415,-448.15200246,0.00013697,2]
[353971480,1740171032424,-159.23058335,0.00013697,2]
[353971481,1740171032434,-500.0,0.00013697,2]
[353971482,1740171032443,-500.0,0.00013697,2]
[353971483,1740171032452,-500.0,0.00013697,2]
[353971484,1740171032462,-500.0,0.00013697,2]
[353971485,1740171032472,-500.0,0.00013697,2]
[353971486,1740171032481,-500.0,0.00013697,2]
[353971487,1740171032490,-500.0,0.00013697,2]
[353971488,1740171032499,-500.0,0.00013697,2]
[353971489,1740171032508,-500.0,0.00013697,2]
[353971490,1740171032517,-549.31823542,0.00013698,2]
[353971491,1740171032526,-500.0,0.00013698,2]
[353971492,1740171032535,-500.0,0.00013698,2]
[353971493,1740171032544,-500.0,0.00013698,2]
[353971494,1740171032554,-223.84260016,0.00013698,2]
[353971495,1740171032563,-500.0,0.00013698,2]
[353971496,1740171032571,-500.0,0.00013698,2]
[353971497,1740171032580,-500.0,0.00013698,2]
[353971498,1740171032600,-500.0,0.00013698,2]
[353971499,1740171032610,-500.36906177,0.00013698,2]
[353971500,1740171032619,-621.47299609,0.00013698,2]
[353971501,1740171032628,-500.0,0.00013698,2]
[353971503,1740171032637,-500.26883788,0.00013698,2]
[353971505,1740171032647,-500.0,0.00013698,2]
[353971507,1740171032657,-500.0,0.00013698,2]
[353971509,1740171032666,-500.0,0.00013698,2]
[353971511,1740171032675,-504.16589703,0.00013698,2]
[353971513,1740171032684,-500.0,0.00013698,2]
[353971515,1740171032694,-500.0,0.00013698,2]
[353971517,1740171032703,-500.0,0.00013698,2]
[353971519,1740171032712,-500.0,0.00013698,2]
[353971521,1740171032723,-500.0,0.00013698,2]
[353971523,1740171032733,-500.0,0.00013698,2]
[353971525,1740171032742,-500.0,0.00013698,2]
[353971527,1740171032751,-500.0,0.00013698,2]
[353971529,1740171032760,-500.0,0.00013698,2]
[353971531,1740171032770,-423.48934172,0.00013698,2]
[353971533,1740171032779,-500.0,0.00013698,2]
[353971535,1740171032788,-500.0,0.00013698,2]
[353971537,1740171032797,-504.46148131,0.00013698,2]
[353971539,1740171032806,-227.14178602,0.00013698,2]
[353971542,1740171032829,-272.85821398,0.00013698,2]
[353971544,1740171032838,-500.0,0.00013698,2]
[353971546,1740171032847,-500.0,0.00013698,2]
[353971548,1740171032857,-500.0,0.00013698,2]
[353971550,1740171032866,-500.0,0.00013698,2]
[353971553,1740171032875,-500.0,0.00013698,2]
[353971555,1740171032884,-500.0,0.00013698,2]
[353971557,1740171032894,-508.12583643,0.00013698,2]
[353971559,1740171032903,-500.0,0.00013698,2]
[353971560,1740171032912,-500.79973855,0.00013698,2]
[353971562,1740171032921,-500.0,0.00013698,2]
[353971564,1740171032931,-500.0,0.00013698,2]
[353971567,1740171032940,-500.0,0.00013698,2]
[353971568,1740171032949,-500.0,0.00013698,2]
[353971571,1740171032959,-500.0,0.00013698,2]
[353971573,1740171032970,-500.0,0.00013698,2]
[353971575,1740171032979,-500.0,0.00013698,2]
[353971577,1740171032988,-500.0,0.00013698,2]
[353971579,1740171033001,-500.0,0.00013698,2]
[353971581,1740171033011,-500.0,0.00013698,2]
[353971583,1740171033020,-500.0,0.00013698,2]
[353971585,1740171033029,-500.0,0.00013698,2]
[353971587,1740171033039,-500.0,0.00013698,2]
[353971589,1740171033048,-295.27144486,0.00013698,2]
[353971591,1740171033057,-500.0,0.00013698,2]
[353971593,1740171033067,-176.13621671,0.00013698,2]
[353971595,1740171033076,-500.0,0.00013698,2]
[353971597,1740171033086,-500.0,0.00013698,2]
[353971599,1740171033095,-500.0,0.00013698,2]
[353971601,1740171033104,-500.0,0.00013698,2]
[353971603,1740171033113,-500.0,0.00013698,2]
[353971605,1740171033123,-504.40041673,0.00013698,2]
[353971607,1740171033132,-500.0,0.00013698,2]
[353971609,1740171033142,-500.0,0.00013698,2]
[353971611,1740171033151,-504.61181885,0.00013698,2]
[353971613,1740171033162,-500.0,0.00013698,2]
[353971615,1740171033172,-500.0,0.00013698,2]
[353971617,1740171033181,-500.0,0.00013698,2]
[353971619,1740171033190,-500.0,0.00013698,2]
[353971621,1740171033200,-505.18593949,0.00013698,2]
[353971623,1740171033209,-500.0,0.00013698,2]
[353971625,1740171033220,-500.0,0.00013698,2]
[353971627,1740171033231,-500.0,0.00013698,2]
[353971629,1740171033240,-500.0,0.00013698,2]
[353971631,1740171033250,-500.0,0.00013698,2]
[353971633,1740171033259,-500.0,0.00013698,2]
[353971635,1740171033268,-500.0,0.00013698,2]
[353971637,1740171033277,-500.0,0.00013698,2]
[353971639,1740171033286,-500.0,0.00013698,2]
[353971641,1740171033295,-500.0,0.00013698,2]
[353971643,1740171033304,-500.0,0.00013698,2]
[353971645,1740171033313,-500.0,0.00013698,2]
[353971647,1740171033323,-500.0,0.00013698,2]
[353971650,1740171033333,-500.0,0.00013698,2]
[353971652,1740171033342,-500.0,0.00013698,2]
[353971654,1740171033351,-516.24812784,0.00013698,2]
[353971656,1740171033362,-500.0,0.00013698,2]
[353971658,1740171033371,-500.0,0.00013698,2]
[353971660,1740171033380,-325.03376356,0.00013698,2]
[353971662,1740171033389,-500.0,0.00013698,2]
[353971664,1740171033398,-500.0,0.00013698,2]
[353971666,1740171033407,-500.0,0.00013698,2]
[353971668,1740171033416,-500.0,0.00013698,2]
[353971670,1740171033425,-614.14175679,0.00013698,2]
[353971672,1740171033440,-500.0,0.00013698,2]
[353971674,1740171033450,-500.0,0.00013698,2]
[353971676,1740171033460,-500.0,0.00013698,2]
[353971678,1740171033470,-500.0,0.00013698,2]
[353971680,1740171033480,-500.0,0.00013698,2]
[353971682,1740171033489,-500.0,0.00013698,2]
[353971684,1740171033499,-500.0,0.00013698,2]
[353971686,1740171033509,-500.0,0.00013698,2]
[353971688,1740171033519,-500.0,0.00013698,2]
[353971691,1740171033529,-500.48680402,0.00013698,2]
[353971693,1740171033539,-500.0,0.00013698,2]
[353971695,1740171033548,-500.0,0.00013698,2]
[353971697,1740171033558,-500.0,0.00013698,2]
[353971699,1740171033567,-500.0,0.00013698,2]
[353971701,1740171033576,-500.0,0.00013698,2]
[353971716,1740171033713,-500.0,0.00013698,2]
[353971718,1740171033729,-500.0,0.00013698,2]
[353971720,1740171033739,-500.0,0.00013698,2]
[353971722,1740171033749,-500.0,0.00013698,2]
[353971724,1740171033759,-500.0,0.00013698,2]
[353971726,1740171033768,-500.0,0.00013698,2]
[353971728,1740171033779,-500.0,0.00013698,2]
[353971730,1740171033789,-500.0,0.00013698,2]
[353971732,1740171033799,-500.0,0.00013698,2]
[353971734,1740171033808,-500.0,0.00013698,2]
[353971736,1740171033817,-500.0,0.00013698,2]
[353971738,1740171033826,-500.0,0.00013698,2]
[353971740,1740171033836,-500.0,0.00013698,2]
[353971742,1740171033846,-500.72402134,0.00013698,2]
[353971744,1740171033855,-500.0,0.00013698,2]
[353971746,1740171033864,-500.0,0.00013698,2]
[353971748,1740171033873,-201.55422494,0.00013698,2]
[353971750,1740171033882,-500.0,0.00013698,2]
[353971752,1740171033892,-571.55,0.00013698,2]
[353971754,1740171033902,-240.06075267,0.00013698,2]
[353971756,1740171033911,-500.0,0.00013698,2]
[353971758,1740171033921,-1000.0,0.00013698,2]
[353971760,1740171033930,-362.72293933,0.00013698,2]
[353971762,1740171033940,-500.0,0.00013698,2]
[353971764,1740171033949,-500.0,0.00013698,2]
[353971766,1740171033958,-500.0,0.00013698,2]
[353971768,1740171033968,-500.0,0.00013698,2]
[353971770,1740171033978,-500.0,0.00013698,2]
[353971772,1740171033988,-500.0,0.00013698,2]
[353971774,1740171033998,-500.0,0.00013698,2]
[353971776,1740171034012,-500.0,0.00013698,2]
[353971778,1740171034021,-500.0,0.00013698,2]
[353971780,1740171034031,-500.0,0.00013698,2]
[353971782,1740171034041,-300.0,0.00013698,2]
[353971784,1740171034051,-500.0,0.00013698,2]
[353971786,1740171034061,-566.49568062,0.00013698,2]
[353971788,1740171034071,-500.0,0.00013698,2]
[353971790,1740171034082,-500.0,0.00013698,2]
[353971792,1740171034092,-500.0,0.00013698,2]
[353971794,1740171034102,-500.0,0.00013698,2]
[353971796,1740171034112,-500.0,0.00013698,2]
[353971798,1740171034122,-500.0,0.00013698,2]
[353971800,1740171034131,-500.0,0.00013698,2]
[353971802,1740171034142,-500.0,0.00013698,2]
[353971804,1740171034151,-500.0,0.00013698,2]
[353971806,1740171034161,-500.0,0.00013698,2]
[353971808,1740171034171,-500.0,0.00013698,2]
[353971810,1740171034180,-500.0,0.00013698,2]
[353971812,1740171034190,-500.0,0.00013698,2]
[353971814,1740171034200,-500.0,0.00013698,2]
[353971816,1740171034209,-500.0,0.00013698,2]
[353971818,1740171034220,-500.0,0.00013698,2]
[353971820,1740171034232,-500.0,0.00013698,2]
[353971822,1740171034242,-500.0,0.00013698,2]
[353971824,1740171034252,-500.0,0.00013698,2]
[353971826,1740171034262,-500.0,0.00013698,2]
[353971828,1740171034273,-500.0,0.00013698,2]
[353971830,1740171034283,-500.0,0.00013698,2]
[353971833,1740171034293,-500.0,0.00013698,2]
[353971834,1740171034303,-500.0,0.00013698,2]
[353971837,1740171034313,-500.0,0.00013698,2]
[353971839,1740171034323,-500.0,0.00013698,2]
[353971841,1740171034333,-500.0,0.00013698,2]
[353971843,1740171034343,-500.0,0.00013698,2]
[353971845,1740171034353,-500.0,0.00013698,2]
[353971847,1740171034362,-500.0,0.00013698,2]
[353971849,1740171034372,-500.0,0.00013698,2]
[353971851,1740171034381,-270.81170593,0.00013698,2]